bitfinex-derivatives/quotes_SOLF0:USTF0_20220102
["timestamp","ask_amount","ask_price","bid_price","bid_amount"]
[1641146005413,27.66479,177.68,177.57,3.0]
[1641146005611,27.66479,177.68,177.56,27.66479]
[1641146006614,27.66479,177.68,177.59,3.0]
[1641146006814,27.66479,177.68,177.56,27.66479]
[1641146007013,27.66479,177.68,177.6,27.66479]
[1641146007214,27.66479,177.68,177.61,3.0]
[1641146007414,11.93407463,177.67,177.6,3.0]
[1641146007914,11.93407463,177.67,177.56,27.66479]
[1641146008315,11.93407463,177.66,177.6,3.0]
[1641146008517,11.93407463,177.66,177.56,27.66479]
[1641146009116,11.93407463,177.66,177.61,3.0]
[1641146009720,11.93407463,177.66,177.62,3.0]
[1641146009918,11.93407463,177.67,177.62,3.0]
[1641146010617,39.59886463,177.68,177.62,3.0]
[1641146011119,11.93407463,177.68,177.62,3.0]
[1641146012123,11.93407463,177.68,177.6,27.66479]
[1641146012321,17.38807463,177.68,177.6,30.66479]
[1641146012722,17.38807463,177.68,177.6,3.0]
[1641146013021,17.38807463,177.68,177.56,59.63947908]
[1641146013223,11.93407463,177.65,177.61,3.0]
[1641146013822,11.93407463,177.67,177.61,3.0]
[1641146014422,11.93407463,177.67,177.59,3.0]
[1641146014623,11.93407463,177.67,177.61,3.0]
[1641146015924,11.93407463,177.67,177.62,3.0]
[1641146016324,11.93407463,177.66,177.63,3.0]
[1641146016523,11.93407463,177.66,177.6,3.0]
[1641146016724,11.93407463,177.66,177.61,3.0]
[1641146017024,17.38807463,177.68,177.57,6.07988603]
[1641146017424,17.38807463,177.68,177.62,3.0]
[1641146017625,17.38807463,177.68,177.63,3.0]
[1641146017824,17.38807463,177.68,177.59,27.66479]
[1641146018027,5.454,177.68,177.62,3.0]
[1641146018228,27.66479,177.7,177.63,3.0]
[1641146018526,4.932,177.72,177.6,53.4105]
[1641146018725,11.93407463,177.72,177.64,3.0]
[1641146018925,11.93407463,177.72,177.6,53.4105]
[1641146019326,11.93407463,177.72,177.65,3.0]
[1641146019524,18.59207463,177.72,177.65,3.0]
[1641146019726,10.62982113,177.72,177.65,3.0]
[1641146020128,10.62982113,177.72,177.67,3.0]
[1641146020530,10.62982113,177.72,177.65,3.0]
[1641146020731,3.97182113,177.72,177.63,3.97182113]
[1641146020928,3.97182113,177.72,177.67,3.0]
[1641146021130,3.97182113,177.73,177.65,3.97182113]
[1641146021331,3.97182113,177.73,177.68,3.0]
[1641146021829,31.63661113,177.73,177.68,3.0]
[1641146022731,3.97182113,177.72,177.68,3.0]
[1641146022936,3.97182113,177.72,177.63,6.97182113]
[1641146023133,3.97182113,177.72,177.7,3.0]
[1641146023335,27.66479,177.73,177.66,3.97182113]
[1641146023835,3.97182113,177.74,177.67,27.66479]
[1641146024034,11.93407463,177.75,177.7,3.97182113]
[1641146024434,11.93407463,177.75,177.74,3.0]
[1641146025636,7.463e-05,177.75,177.74,3.0]
[1641146026736,31.97468908,177.79,177.74,3.0]
[1641146026937,31.97468908,177.79,177.73,27.66479]
[1641146027138,31.97468908,177.79,177.67,33.28592547]
[1641146027139,4.723,177.79,177.72,3.0]
[1641146027936,2.71305927,177.78,177.72,6.99469006]
[1641146028141,2.71305927,177.78,177.72,3.99469006]
[1641146028838,2.71305927,177.78,177.72,6.99469006]
[1641146029640,34.68774835,177.78,177.7,3.99469006]
[1641146029839,34.68774835,177.78,177.72,3.0]
[1641146030541,34.68774835,177.78,177.72,6.99469006]
[1641146030745,12.60848055,177.78,177.72,3.99469006]
[1641146030944,12.60848055,177.78,177.72,6.99469006]
[1641146031444,12.60848055,177.78,177.72,3.99469006]
[1641146032144,27.66479,177.76,177.72,3.99469006]
[1641146032843,27.66479,177.76,177.69,6.99469006]
[1641146033043,27.66479,177.76,177.71,3.0]
[1641146034048,12.60848055,177.75,177.71,3.0]
[1641146034748,12.60848055,177.75,177.7,6.99469006]
[1641146034948,12.60848055,177.75,177.72,3.0]
[1641146035547,12.60848055,177.75,177.7,3.99469006]
[1641146035748,31.97468908,177.77,177.69,6.99469006]
[1641146036050,4.263,177.75,177.69,3.99469006]
[1641146036648,4.263,177.75,177.69,6.99469006]
[1641146037050,2.71305927,177.74,177.69,6.99469006]
[1641146037549,2.71305927,177.74,177.69,3.99469006]
[1641146039350,2.71305927,177.74,177.69,6.99469006]
[1641146039551,2.71305927,177.74,177.69,3.99469006]
[1641146039754,2.71305927,177.74,177.68,3.99469006]
[1641146039954,2.71305927,177.74,177.72,3.0]
[1641146040162,2.71305927,177.74,177.69,3.0]
[1641146041855,2.71305927,177.74,177.73,3.0]
[1641146042056,12.60848055,177.75,177.73,9.486]
[1641146042256,12.60848055,177.75,177.74,3.0]
[1641146042458,12.60848055,177.75,177.73,27.66479]
[1641146042658,12.60848055,177.75,177.71,3.0]
[1641146042858,9.89542128,177.75,177.72,3.99469006]
[1641146043063,9.89542128,177.75,177.73,3.0]
[1641146043257,31.97468908,177.76,177.73,3.0]
[1641146043458,12.60848055,177.78,177.73,3.0]
[1641146044263,2.71305927,177.78,177.73,3.0]
[1641146044457,3.96787834,177.76,177.73,3.0]
[1641146044858,3.96787834,177.76,177.72,3.0]
[1641146045057,3.96787834,177.76,177.7,3.0]
[1641146045259,3.96787834,177.76,177.69,27.66479]
[1641146045460,3.96787834,177.76,177.7,3.0]
[1641146045657,3.96787834,177.76,177.67,3.99469006]
[1641146045959,3.96787834,177.74,177.64,3.99469006]
[1641146046159,10.00087834,177.74,177.67,3.0]
[1641146046359,37.66566834,177.74,177.64,3.99469006]
[1641146046559,37.66566834,177.74,177.68,3.0]
[1641146047159,37.66566834,177.74,177.64,3.99469006]
[1641146047360,3.96787834,177.71,177.69,3.0]
[1641146047760,2.71305927,177.73,177.69,3.0]
[1641146047960,12.61443368,177.73,177.69,3.0]
[1641146048158,12.61443368,177.73,177.68,6.99469006]
[1641146048558,12.61443368,177.73,177.68,3.99469006]
[1641146048960,12.61443368,177.73,177.68,3.0]
[1641146049860,12.61443368,177.73,177.67,3.99469006]
[1641146050060,12.61443368,177.73,177.72,3.0]
[1641146050565,12.61443368,177.73,177.66,3.99469006]
[1641146050767,2.71305927,177.73,177.66,3.99469006]
[1641146050964,2.71305927,177.73,177.7,3.99469006]
[1641146051563,2.71305927,177.73,177.71,3.0]
[1641146051865,2.71305927,177.73,177.7,3.99469006]
[1641146052068,8.03505927,177.73,177.7,3.99469006]
[1641146052364,8.03505927,177.73,177.71,3.0]
[1641146052564,2.71305927,177.72,177.71,6.99469006]
[1641146052965,2.71305927,177.72,177.71,3.99469006]
[1641146053367,2.71305927,177.72,177.71,6.99469006]
[1641146053565,2.71305927,177.72,177.71,8.27626994]
[1641146054268,2.71305927,177.72,177.71,3.0]
[1641146055167,12.61164569,177.78,177.71,4.28161315]
[1641146055868,12.61164569,177.78,177.69,27.66479]
[1641146055869,11.98440743,177.76,177.72,5.27641563]
[1641146056268,11.98440743,177.76,177.75,3.0]
[1641146056768,14.6974667,177.76,177.75,3.0]
[1641146056969,14.6974667,177.76,177.73,3.0]
[1641146057170,19.2394667,177.76,177.73,3.0]
[1641146057369,16.52640743,177.76,177.73,3.0]
[1641146058369,2.71305927,177.75,177.73,3.0]
[1641146058668,2.71305927,177.75,177.72,3.99480248]
[1641146058873,2.71305927,177.75,177.74,3.0]
[1641146059069,14.6974667,177.75,177.74,3.0]
[1641146059771,11.98440743,177.75,177.71,3.99480248]
[1641146059969,16.60240743,177.75,177.71,3.99480248]
[1641146060873,2.71305927,177.74,177.72,3.99480248]
[1641146062875,2.71305927,177.74,177.72,6.99480248]
[1641146063371,2.71305927,177.74,177.72,3.0]
[1641146064374,14.6974667,177.74,177.72,3.0]
[1641146065274,14.6974667,177.74,177.7,31.65959248]
[1641146065475,14.6974667,177.74,177.72,3.0]
[1641146065675,11.98440743,177.74,177.72,3.0]
[1641146067078,11.98440743,177.75,177.69,3.99480248]
[1641146067276,4.419,177.74,177.71,3.0]
[1641146067476,4.419,177.74,177.73,3.0]
[1641146067977,16.40340743,177.74,177.73,3.0]
[1641146069078,16.40340743,177.74,177.69,3.99480248]
[1641146069279,16.40340743,177.74,177.72,3.0]
[1641146069478,16.40340743,177.74,177.71,3.0]
[1641146069679,4.419,177.74,177.71,3.0]
[1641146070083,4.419,177.74,177.68,3.99480248]
[1641146070283,4.419,177.74,177.68,6.99480248]
[1641146070487,4.419,177.74,177.68,3.99480248]
[1641146071084,11.97224008,177.72,177.69,3.0]
[1641146074288,11.97224008,177.71,177.69,3.0]
[1641146074789,11.97224008,177.71,177.67,3.99480248]
[1641146075491,11.97224008,177.71,177.7,3.0]
[1641146075890,11.97224008,177.72,177.7,3.0]
[1641146076892,11.97224008,177.72,177.71,3.0]
[1641146077094,11.97224008,177.72,177.68,3.99480248]
[1641146077095,11.97224008,177.72,177.69,3.0]
[1641146078195,11.97224008,177.72,177.68,3.99480248]
[1641146078598,11.97224008,177.72,177.71,3.0]
[1641146078795,11.97224008,177.73,177.71,3.0]
[1641146078996,11.97224008,177.73,177.69,3.99480248]
[1641146079295,11.97224008,177.73,177.72,3.0]
[1641146080496,11.97224008,177.73,177.69,3.99480248]
[1641146081896,11.97224008,177.73,177.69,5.27633624]
[1641146083197,11.97224008,177.73,177.68,6.99480248]
[1641146083996,14.68637981,177.73,177.68,6.99480248]
[1641146084796,14.68637981,177.73,177.68,3.99480248]
[1641146084997,11.97224008,177.71,177.67,3.99480248]
[1641146085498,11.97224008,177.71,177.69,3.0]
[1641146085997,11.97224008,177.71,177.67,5.27633079]
[1641146086398,11.97224008,177.71,177.67,3.99480248]
[1641146086798,11.97224008,177.71,177.68,3.0]
[1641146087199,11.97224008,177.71,177.7,3.0]
[1641146088201,11.97224008,177.71,177.67,3.99480248]
[1641146089000,11.97224008,177.71,177.68,3.0]
[1641146089202,11.97224008,177.71,177.67,5.27632516]
[1641146089801,11.97224008,177.71,177.67,8.27632516]
[1641146090202,11.97224008,177.71,177.7,3.0]
[1641146090402,11.97224008,177.7,177.66,3.99480248]
[1641146090600,11.97224008,177.7,177.68,3.0]
[1641146091203,11.97224008,177.7,177.66,3.99480248]
[1641146091604,11.97224008,177.7,177.67,3.0]
[1641146093003,3.98116003,177.7,177.67,3.0]
[1641146093403,3.98116003,177.7,177.69,3.0]
[1641146094002,11.97224008,177.73,177.67,5.877]
[1641146094202,25.04824008,177.73,177.67,5.877]
[1641146094403,25.04824008,177.73,177.69,3.0]
[1641146094603,3.98087785,177.71,177.69,3.0]
[1641146094804,3.98087785,177.71,177.65,3.99480248]
[1641146095004,3.98087785,177.71,177.67,3.0]
[1641146095404,3.98087785,177.71,177.65,5.27155614]
[1641146096705,3.98087785,177.71,177.7,3.0]
[1641146096904,14.68637981,177.72,177.7,3.0]
[1641146097408,14.68637981,177.72,177.7,27.66479]
[1641146097811,11.97224008,177.75,177.71,11.27155614]
[1641146098010,11.97224008,177.75,177.71,5.27155614]
[1641146098207,11.97224008,177.75,177.74,3.0]
[1641146098912,11.97224008,177.77,177.74,3.0]
[1641146099310,11.97224008,177.77,177.73,3.99480248]
[1641146099510,16.76024008,177.77,177.74,3.0]
[1641146099911,11.97224008,177.76,177.74,3.0]
[1641146100111,11.97224008,177.76,177.72,3.99480248]
[1641146100314,11.97224008,177.76,177.75,3.0]
[1641146100714,2.71413973,177.76,177.75,3.0]
[1641146104220,2.71413973,177.76,177.74,3.0]
[1641146104420,2.71413973,177.76,177.7,3.99480248]
[1641146104618,2.71413973,177.76,177.75,3.0]
[1641146105522,2.71413973,177.76,177.71,3.99480248]
[1641146106421,2.71413973,177.76,177.69,55.5395]
[1641146106622,2.71413973,177.76,177.75,3.0]
[1641146107926,12.61601279,177.79,177.75,3.0]
[1641146108729,12.61601279,177.79,177.72,6.99486016]
[1641146108927,69.74001279,177.81,177.75,6.99486016]
[1641146109529,69.74001279,177.81,177.75,3.99486016]
[1641146109728,69.74001279,177.81,177.75,6.99486016]
[1641146110735,12.61601279,177.8,177.75,3.0]
[1641146112032,44.59070187,177.8,177.75,3.0]
[1641146112636,12.61601279,177.8,177.75,3.0]
[1641146113835,44.59070187,177.8,177.75,3.0]
[1641146114437,44.59070187,177.8,177.74,3.0]
[1641146114637,44.59070187,177.8,177.74,27.66479]
[1641146114838,44.59070187,177.8,177.79,3.0]
[1641146115040,44.59070187,177.8,177.79,9.842]
[1641146115340,12.61601279,177.8,177.79,9.842]
[1641146116540,11.98117277,177.8,177.79,9.842]
[1641146117039,11.98117277,177.8,177.79,3.0]
[1641146117641,11.98117277,177.81,177.79,3.0]
[1641146118442,11.98117277,177.81,177.8,6.0]
[1641146118642,11.98117277,177.82,177.8,6.0]
[1641146118843,11.98117277,177.82,177.81,3.0]
[1641146119743,11.98117277,177.83,177.81,3.0]
[1641146121049,11.98117277,177.83,177.79,31.65965016]
[1641146121249,11.98117277,177.82,177.79,27.66479]
[1641146121553,11.98117277,177.82,177.81,3.0]
[1641146122447,31.97468908,177.86,177.81,3.0]
[1641146122647,31.97468908,177.85,177.81,3.0]
[1641146122949,31.97468908,177.85,177.79,27.66479]
[1641146123250,31.97468908,177.85,177.84,3.0]
[1641146123649,31.97468908,177.85,177.79,27.66479]
[1641146123949,11.9799647,177.82,177.79,27.66479]
[1641146124149,11.9799647,177.82,177.81,3.0]
[1641146124752,11.9799647,177.82,177.8,3.0]
[1641146124949,16.9759647,177.82,177.78,3.0]
[1641146125351,16.9759647,177.82,177.79,3.0]
[1641146125553,4.996,177.82,177.79,3.0]
[1641146125754,36.97068908,177.82,177.8,3.0]
[1641146126555,36.97068908,177.82,177.79,3.0]
[1641146126854,2.71413973,177.81,177.77,3.0]
[1641146127554,2.71413973,177.81,177.76,3.0]
[1641146127753,11.98214215,177.79,177.76,3.0]
[1641146128158,11.98214215,177.79,177.75,3.99486016]
[1641146128355,11.98214215,177.79,177.78,3.0]
[1641146128556,31.97468908,177.81,177.78,3.0]
[1641146129355,31.97468908,177.81,177.74,32.73879]
[1641146129556,31.97468908,177.81,177.78,3.0]
[1641146130357,12.61601279,177.82,177.78,3.0]
[1641146132961,12.61601279,177.82,177.76,3.0]
[1641146133164,17.22901279,177.82,177.76,3.0]
[1641146133862,17.22901279,177.82,177.74,3.99486016]
[1641146134060,17.22901279,177.82,177.77,3.0]
[1641146134262,2.71413973,177.81,177.77,3.0]
[1641146136563,31.97468908,177.82,177.77,3.0]
[1641146138067,31.97468908,177.81,177.73,3.99486016]
[1641146138269,31.97468908,177.81,177.77,3.0]
[1641146138966,31.97468908,177.81,177.73,3.99486016]
[1641146139164,31.97468908,177.82,177.74,3.99486016]
[1641146140168,31.97468908,177.82,177.77,3.0]
[1641146140567,31.97468908,177.82,177.75,3.0]
[1641146141171,31.97468908,177.82,177.74,3.99486016]
[1641146142070,31.97468908,177.82,177.76,3.0]
[1641146142568,31.97468908,177.82,177.75,4.787]
[1641146142769,31.97468908,177.82,177.76,3.0]
[1641146143268,31.97468908,177.82,177.77,3.0]
[1641146143769,44.59070187,177.83,177.77,3.0]
[1641146144572,11.98233037,177.79,177.77,3.0]
[1641146145973,11.98233037,177.8,177.77,3.0]
[1641146149279,11.98233037,177.8,177.76,3.99486016]
[1641146150979,11.98233037,177.8,177.77,3.0]
[1641146152179,11.98233037,177.8,177.76,3.99486016]
[1641146152380,11.98233037,177.8,177.76,6.99486016]
[1641146152982,11.98233037,177.8,177.77,3.0]
[1641146153183,11.98233037,177.78,177.77,3.0]
[1641146154081,11.98233037,177.78,177.76,3.0]
[1641146155183,11.98233037,177.78,177.74,58.22466016]
[1641146155382,11.98233037,177.78,177.77,3.0]
[1641146155584,11.98233037,177.79,177.77,3.0]
[1641146156788,4.0,177.78,177.74,3.99004902]
[1641146156985,4.0,177.75,177.66,7.70555762]
[1641146157185,55.32958,177.67,177.61,47.9390892]
[1641146157485,62.07458,177.67,177.61,47.9390892]
[1641146157884,34.40979,177.67,177.61,50.9390892]
[1641146158086,2.71413973,177.66,177.61,3.0]
[1641146158285,2.71413973,177.66,177.58,1.27758071]
[1641146158785,5.62999662,177.59,177.53,15.89080845]
[1641146158984,4.301,177.59,177.53,15.89080845]
[1641146159185,55.32958,177.54,177.53,9.15080845]
[1641146159385,61.21458,177.54,177.53,3.95080845]
[1641146159984,61.21458,177.54,177.53,0.95080845]
[1641146160390,61.21458,177.54,177.51,3.0]
[1641146160794,61.21458,177.54,177.44,53.4915]
[1641146160990,61.21458,177.54,177.49,3.0]
[1641146161190,27.66479,177.5,177.43,3.0]
[1641146161390,27.66479,177.5,177.48,3.0]
[1641146161591,33.54979,177.54,177.49,3.0]
[1641146161790,27.66479,177.54,177.5,3.0]
[1641146162192,27.66479,177.54,177.39,52.1775]
[1641146162391,27.66479,177.54,177.52,3.0]
[1641146163192,27.66479,177.54,177.47,3.0]
[1641146163391,27.66479,177.54,177.53,3.0]
[1641146165898,27.66479,177.54,177.49,3.0]
[1641146166098,28.1051712,177.54,177.46,3.0]
[1641146166499,28.1051712,177.54,177.45,3.0]
[1641146166703,28.1051712,177.54,177.44,3.0]
[1641146167003,28.1051712,177.54,177.46,3.0]
[1641146167299,27.66479,177.5,177.46,3.0]
[1641146167500,34.58079,177.5,177.41,55.4847]
[1641146167702,34.58079,177.5,177.41,3.0]
[1641146167901,34.58079,177.5,177.45,3.0]
[1641146168102,34.58079,177.5,177.41,3.0]
[1641146169004,34.58079,177.5,177.4,54.3374]
[1641146170203,34.58079,177.5,177.47,3.0]
[1641146170403,34.58079,177.5,177.49,6.0]
[1641146170610,34.58079,177.5,177.49,3.0]
[1641146171806,27.66479,177.5,177.49,3.0]
[1641146174409,27.66479,177.5,177.42,3.0]
[1641146174809,27.66479,177.5,177.49,3.0]
[1641146175009,21.2671712,177.54,177.49,3.0]
[1641146175209,21.2671712,177.54,177.53,3.0]
[1641146178516,21.2671712,177.54,177.46,82.60179]
[1641146178718,21.2671712,177.54,177.53,3.0]
[1641146180220,27.66479,177.57,177.53,6.0]
[1641146180420,4.0,177.71,177.56,3.0]
[1641146180620,58.7811,177.7,177.62,3.0]
[1641146181020,3.1987868,177.69,177.62,3.0]
[1641146181225,27.66479,177.63,177.61,5.761]
[1641146182021,27.66479,177.63,177.58,3.0]
[1641146182223,32.10179,177.63,177.52,60.3315]
[1641146182623,32.10179,177.63,177.58,3.0]
[1641146183223,27.66479,177.59,177.53,3.0]
[1641146183429,31.94779,177.59,177.58,3.0]
[1641146184727,27.66479,177.59,177.58,3.0]
[1641146185229,27.66479,177.63,177.58,3.0]
[1641146185427,27.66479,177.63,177.53,62.823]
[1641146185629,34.44479,177.63,177.6,3.0]
[1641146185928,27.66479,177.63,177.61,3.0]
[1641146186129,27.66479,177.63,177.6,6.322]
[1641146186331,27.66479,177.63,177.62,3.0]
[1641146186528,27.66479,177.63,177.56,6.408]
[1641146186728,27.66479,177.63,177.62,3.0]
[1641146187131,27.66479,177.63,177.61,3.0]
[1641146187531,9.92256873,177.62,177.61,3.0]
[1641146188335,16.15556873,177.62,177.61,3.0]
[1641146188837,16.15556873,177.62,177.55,27.66479]
[1641146189036,16.15556873,177.62,177.58,3.0]
[1641146189236,16.15556873,177.62,177.59,3.0]
[1641146189436,16.15556873,177.62,177.53,59.823]
[1641146189636,16.15556873,177.62,177.59,3.0]
[1641146190335,16.15556873,177.62,177.54,3.0]
[1641146190535,16.15556873,177.62,177.6,3.0]
[1641146191540,6.233,177.62,177.6,3.0]
[1641146191737,6.233,177.62,177.55,3.0]
[1641146191937,6.233,177.62,177.59,3.0]
[1641146192138,6.233,177.62,177.54,6.06942469]
[1641146192338,16.15636548,177.62,177.58,3.0]
[1641146193137,16.15636548,177.62,177.61,3.0]
[1641146193838,16.15636548,177.62,177.53,59.823]
[1641146194042,16.15636548,177.62,177.54,3.0]
[1641146194538,16.15636548,177.62,177.6,3.0]
[1641146194837,16.15636548,177.62,177.53,59.823]
[1641146195037,16.15636548,177.62,177.53,62.823]
[1641146195837,16.15636548,177.62,177.6,3.0]
[1641146196937,16.15636548,177.62,177.55,3.0]
[1641146197139,16.15636548,177.62,177.53,59.823]
[1641146197339,6.233,177.62,177.53,62.823]
[1641146197537,27.66479,177.63,177.6,3.0]
[1641146197739,27.66479,177.63,177.54,6.06939391]
[1641146197940,38.86320222,177.63,177.57,3.0]
[1641146198138,38.86320222,177.63,177.51,3.0]
[1641146198139,38.86320222,177.63,177.58,3.0]
[1641146198340,9.92314966,177.62,177.58,3.0]
[1641146199041,31.12266302,177.61,177.58,3.0]
[1641146199843,31.12266302,177.61,177.6,3.0]
[1641146200042,31.12266302,177.61,177.54,3.0]
[1641146200043,31.12266302,177.61,177.53,3.0]
[1641146200242,31.12266302,177.61,177.52,3.0]
[1641146200443,35.50866302,177.61,177.52,3.0]
[1641146200643,35.50866302,177.61,177.53,3.0]
[1641146200843,4.386,177.61,177.6,3.0]
[1641146202945,27.66479,177.63,177.6,3.0]
[1641146203346,27.66479,177.63,177.62,3.0]
[1641146204848,37.58767545,177.63,177.62,3.0]
[1641146205048,37.58767545,177.63,177.54,3.0]
[1641146205248,43.15867545,177.63,177.54,3.0]
[1641146205450,43.15867545,177.63,177.6,3.0]
[1641146205749,33.23579,177.63,177.6,3.0]
[1641146206148,33.23579,177.63,177.55,1.27651397]
[1641146206349,33.23579,177.63,177.61,3.0]
[1641146206648,9.92353813,177.62,177.55,3.0]
[1641146206851,9.92353813,177.62,177.61,3.0]
[1641146207049,9.92353813,177.62,177.53,3.0]
[1641146207252,9.92353813,177.62,177.56,1.27649648]
[1641146207853,9.92353813,177.62,177.54,1.27649648]
[1641146208053,9.92353813,177.62,177.61,3.0]
[1641146208253,9.92353813,177.62,177.6,3.0]
[1641146208753,9.92353813,177.62,177.56,57.8398]
[1641146208955,9.92353813,177.62,177.6,3.0]
[1641146209157,33.23579,177.63,177.6,3.0]
[1641146210757,33.23579,177.63,177.54,3.0]
[1641146210958,9.92459909,177.62,177.61,3.0]
[1641146213061,5.571,177.63,177.53,65.2503]
[1641146213360,27.66479,177.63,177.53,65.2503]
[1641146213862,9.92459909,177.62,177.54,1.27649124]
[1641146214063,15.16559909,177.62,177.61,3.0]
[1641146215265,15.16559909,177.62,177.6,3.0]
[1641146215967,2.72172185,177.61,177.6,3.0]
[1641146216568,2.72172185,177.62,177.6,3.0]
[1641146217372,12.64632094,177.62,177.6,3.0]
[1641146218171,12.64632094,177.62,177.56,3.99826898]
[1641146218373,12.64632094,177.62,177.6,3.0]
[1641146218572,12.64632094,177.62,177.56,3.99826898]
[1641146219672,12.64632094,177.62,177.6,3.0]
[1641146220674,12.64632094,177.62,177.56,3.99826898]
[1641146221276,12.64632094,177.62,177.61,3.0]
[1641146221474,2.72172185,177.62,177.61,3.0]
[1641146222074,2.72172185,177.62,177.56,3.99826898]
[1641146222274,12.64632094,177.62,177.56,3.99826898]
[1641146222475,12.64632094,177.62,177.61,3.0]
[1641146223575,2.72172185,177.62,177.61,3.0]
[1641146223775,14.71531963,177.62,177.61,3.0]
[1641146226277,2.16836687,177.59,177.58,3.99826898]
[1641146226678,2.16836687,177.59,177.56,3.0]
[1641146227277,2.16836687,177.59,177.58,3.99794808]
[1641146228679,2.16836687,177.59,177.58,5.249]
[1641146228883,27.66479,177.66,177.58,8.249]
[1641146229080,27.66479,177.66,177.64,3.0]
[1641146229279,27.66479,177.66,177.64,8.233]
[1641146229679,2.71963052,177.65,177.64,8.233]
[1641146230881,2.71963052,177.65,177.64,3.0]
[1641146231281,2.71963052,177.65,177.63,3.99729615]
[1641146231784,2.71963052,177.65,177.64,5.2739235]
[1641146232383,2.71963052,177.65,177.64,3.99729615]
[1641146233183,2.71963052,177.65,177.63,5.2739235]
[1641146234081,2.71963052,177.65,177.63,3.99729615]
[1641146235382,2.71963052,177.65,177.62,5.2739235]
[1641146237485,2.71963052,177.65,177.64,3.0]
[1641146237684,27.66479,177.66,177.62,9.8499235]
[1641146237883,27.66479,177.66,177.64,3.0]
[1641146238084,27.66479,177.66,177.62,12.8499235]
[1641146238484,27.66479,177.66,177.64,3.0]
[1641146238686,27.66479,177.66,177.65,3.99729615]
[1641146239485,27.66479,177.66,177.61,3.0]
[1641146239486,27.66479,177.66,177.64,3.99729615]
[1641146242886,62.1968,177.71,177.64,3.99729615]
[1641146243085,31.12266302,177.72,177.64,6.99729615]
[1641146243287,31.12266302,177.72,177.64,3.99729615]
[1641146243488,31.12266302,177.72,177.61,3.0]
[1641146243489,27.66479,177.68,177.65,3.99729615]
[1641146244688,27.66479,177.68,177.66,3.99729615]
[1641146246093,27.66479,177.68,177.65,3.99729615]
[1641146248197,4.229,177.7,177.65,3.99729615]
[1641146248998,59.7673,177.72,177.65,3.99729615]
[1641146249399,9.91505185,177.71,177.65,3.99729615]
[1641146249598,16.59205185,177.71,177.65,3.99729615]
[1641146250000,27.66479,177.68,177.65,3.99729615]
[1641146251005,6.677,177.71,177.64,3.99729615]
[1641146251607,16.59215181,177.71,177.64,3.99729615]
[1641146252106,27.66479,177.68,177.64,3.99729615]
[1641146253109,90.88996302,177.72,177.64,3.99729615]
[1641146253609,9.91495216,177.71,177.64,3.99729615]
[1641146254110,27.66479,177.68,177.64,3.99729615]
[1641146258313,27.66479,177.68,177.65,3.99729615]
[1641146259016,3.9911282,177.66,177.64,3.99729615]
[1641146259815,4.785,177.69,177.64,3.99729615]
[1641146260017,11.97443538,177.68,177.62,3.99729615]
[1641146260217,27.66479,177.65,177.62,3.99729615]
[1641146260417,33.70079,177.65,177.62,3.99729615]
[1641146260917,3.99178741,177.63,177.61,3.99729615]
[1641146262019,3.99178741,177.63,177.6,3.99729615]
[1641146262417,3.99178741,177.63,177.62,3.0]
[1641146262618,27.66479,177.65,177.62,6.99729615]
[1641146262818,27.66479,177.65,177.62,3.99729615]
[1641146263417,27.66479,177.65,177.64,3.99729615]
[1641146264220,39.63922538,177.68,177.64,3.99729615]
[1641146265118,39.63922538,177.68,177.63,3.99729615]
[1641146266120,11.97443538,177.67,177.63,3.99729615]
[1641146267421,11.97443538,177.67,177.63,6.99729615]
[1641146267621,11.97443538,177.67,177.63,3.99729615]
[1641146269124,39.63922538,177.67,177.63,3.99729615]
[1641146272831,11.97443538,177.67,177.63,3.99729615]
[1641146273232,27.66479,177.66,177.63,3.99729615]
[1641146274235,30.66479,177.66,177.63,3.99729615]
[1641146274635,30.66479,177.66,177.55,31.12266302]